[Event "MČR juniorů a juniorek v rapid šachu 2023"]
[Site "Czech Republic"]
[Date "2023.09.24"]
[Round "9.8"]
[White "Dolensky, Filip"]
[Black "Mikolas, Petr"]
[Result "1-0"]
[TimeControl "20 min + 5 sec per move"]
[WhiteFideId "399000"]
[BlackFideId "23713224"]
[WhiteElo "1942"]
[BlackElo "1514"]

1. e4 {[%clk 00:20:09]} c5 {[%clk 00:20:03]} {[%emt 00:00:08]} 2. c3 {[%clk
00:20:14]} Nf6 {[%clk 00:20:06]} {[%emt 00:00:01]} 3. e5 {[%clk 00:20:18]} Nd5
{[%clk 00:20:10]} 4. Nf3 {[%clk 00:20:22]} d6 {[%clk 00:20:09]} {[%emt
00:00:06]} 5. d4 {[%clk 00:20:26]} cxd4 {[%clk 00:20:14]} {[%emt 00:00:01]} 6.
cxd4 {[%clk 00:20:30]} Nc6 {[%clk 00:19:58]} {[%emt 00:00:20]} 7. Bc4 {[%clk
00:20:31]} {[%emt 00:00:04]} Nb6 {[%clk 00:19:20]} {[%emt 00:00:44]} 8. Bb3
{[%clk 00:18:49]} {[%emt 00:01:47]} Bg4 {[%clk 00:18:24]} {[%emt 00:01:01]} 9.
Bxf7+ {[%clk 00:18:09]} {[%emt 00:00:45]} Kxf7 {[%clk 00:17:50]} {[%emt
00:00:38]} 10. Ng5+ {[%clk 00:18:13]} Ke8 {[%clk 00:17:33]} {[%emt 00:00:24]}
11. Qxg4 {[%clk 00:18:15]} {[%emt 00:00:04]} dxe5 {[%clk 00:17:13]} {[%emt
00:00:25]} 12. Nxh7 {[%clk 00:14:51]} {[%emt 00:03:28]} Qxd4 {[%clk 00:12:21]}
{[%emt 00:04:57]} 13. Qg6+ {[%clk 00:13:54]} {[%emt 00:01:02]} Kd8 {[%clk
00:11:28]} {[%emt 00:00:58]} 14. O-O {[%clk 00:12:52]} {[%emt 00:01:07]} Qh4
{[%clk 00:10:57]} {[%emt 00:00:37]} 15. Rd1+ {[%clk 00:10:40]} {[%emt
00:02:16]} Kc7 {[%clk 00:10:56]} {[%emt 00:00:06]} 16. Nc3 {[%clk 00:08:47]}
{[%emt 00:01:58]} a6 {[%clk 00:10:02]} {[%emt 00:00:59]} 17. Ng5 {[%clk
00:06:10]} {[%emt 00:02:41]} Qxh2+ {[%clk 00:09:44]} {[%emt 00:00:24]} 18. Kf1
{[%clk 00:06:14]} Qh1+ {[%clk 00:05:53]} {[%emt 00:03:56]} 19. Ke2 {[%clk
00:06:17]} {[%emt 00:00:02]} Qh5+ {[%clk 00:05:57]} 20. Qxh5 {[%clk 00:06:07]}
{[%emt 00:00:14]} Rxh5 {[%clk 00:06:01]} 21. Ne6+ {[%clk 00:06:05]} {[%emt
00:00:07]} Kb8 {[%clk 00:04:52]} {[%emt 00:01:15]} 22. g4 {[%clk 00:02:45]}
{[%emt 00:03:25]} Rh8 {[%clk 00:04:19]} {[%emt 00:00:38]} 23. Be3 {[%clk
00:02:39]} {[%emt 00:00:11]} Nc4 {[%clk 00:04:15]} {[%emt 00:00:09]} 24. Rh1
{[%clk 00:02:25]} {[%emt 00:00:18]} Rg8 {[%clk 00:04:09]} {[%emt 00:00:11]} 25.
Rad1 {[%clk 00:01:11]} {[%emt 00:01:20]} Nd4+ {[%clk 00:02:14]} {[%emt
00:02:00]} 26. Nxd4 {[%clk 00:01:02]} {[%emt 00:00:14]} exd4 {[%emt 00:00:03]}
27. Rxd4 {[%clk 00:00:59]} {[%emt 00:00:06]} Nd6 {[%clk 00:02:08]} {[%emt
00:00:14]} 28. Rhd1 {[%clk 00:00:47]} {[%emt 00:00:17]} b5 {[%clk 00:01:50]}
{[%emt 00:00:24]} 29. Ne4 {[%clk 00:00:50]} {[%emt 00:00:02]} g6 {[%clk
00:00:47]} {[%emt 00:01:08]} 30. Bf4 {[%clk 00:00:42]} {[%emt 00:00:13]} Bg7
{[%clk 00:00:39]} {[%emt 00:00:13]} 31. R4d2 {[%clk 00:00:33]} {[%emt
00:00:14]} Ka7 {[%clk 00:00:30]} {[%emt 00:00:14]} 32. Nxd6 {[%clk 00:00:33]}
{[%emt 00:00:05]} exd6 {[%clk 00:00:31]} {[%emt 00:00:04]} 33. Be3+ {[%clk
00:00:36]} {[%emt 00:00:03]} Kb7 {[%clk 00:00:34]} {[%emt 00:00:02]} 34. Rxd6
{[%clk 00:00:38]} {[%emt 00:00:02]} Bxb2 {[%clk 00:00:23]} {[%emt 00:00:17]} 35.
Rd7+ {[%clk 00:00:40]} {[%emt 00:00:03]} Kc8 {[%clk 00:00:25]} {[%emt
00:00:02]} 36. Bf4 {[%clk 00:00:33]} {[%emt 00:00:12]} Re8+ {[%clk 00:00:22]}
{[%emt 00:00:09]} 37. Kf3 {[%clk 00:00:32]} {[%emt 00:00:06]} Be5 {[%clk
00:00:24]} {[%emt 00:00:03]} 38. Bxe5 {[%clk 00:00:33]} {[%emt 00:00:03]} Rxe5
{[%clk 00:00:28]} {[%emt 00:00:01]} 39. Rd8+ {[%clk 00:00:35]} {[%emt
00:00:04]} Kb7 {[%clk 00:00:33]} 40. R1d7+ {[%clk 00:00:29]} {[%emt 00:00:11]}
Kc6 {[%emt 00:00:01]} 41. Rd6+ {[%clk 00:00:27]} {[%emt 00:00:06]} Kc5 {[%clk
00:00:27]} {[%emt 00:00:16]} 42. Rxa8 {[%clk 00:00:29]} {[%emt 00:00:03]} Kxd6
{[%clk 00:00:31]} 43. Rxa6+ {[%clk 00:00:33]} Kc5 {[%clk 00:00:30]} {[%emt
00:00:07]} 44. Rxg6 {[%clk 00:00:36]} {[%emt 00:00:01]} Rd5 {[%clk 00:00:34]}
45. Ra6 {[%clk 00:00:36]} {[%emt 00:00:04]} Rg5 {[%clk 00:00:23]} {[%emt
00:00:17]} 46. Kg3 {[%clk 00:00:34]} {[%emt 00:00:07]} 1-0

[Event "MČR juniorů a juniorek v rapid šachu 2023"]
[Site "Czech Republic"]
[Date "2023.09.24"]
[Round "9.9"]
[White "Simunek, Jakub Simon"]
[Black "Strnadova, Monika"]
[Result "1-0"]
[TimeControl "20 min + 5 sec per move"]
[WhiteFideId "23709464"]
[BlackFideId "23701668"]
[WhiteElo "1843"]
[BlackElo "1728"]

1. e4 {[%clk 00:20:03]} {[%emt 00:00:07]} c5 {[%clk 00:20:09]} {[%emt
00:00:02]} 2. Nf3 {[%clk 00:20:07]} {[%emt 00:00:01]} Nc6 {[%clk 00:20:13]}
{[%emt 00:00:02]} 3. Bb5 {[%clk 00:20:10]} e6 {[%clk 00:20:16]} {[%emt
00:00:02]} 4. c3 {[%clk 00:20:08]} {[%emt 00:00:07]} Nge7 {[%clk 00:20:14]}
{[%emt 00:00:07]} 5. O-O {[%clk 00:20:08]} {[%emt 00:00:05]} a6 {[%clk
00:20:16]} {[%emt 00:00:03]} 6. Ba4 {[%clk 00:20:10]} {[%emt 00:00:03]} b5
{[%clk 00:19:58]} {[%emt 00:00:24]} 7. Bc2 {[%clk 00:20:14]} {[%emt 00:00:02]}
g6 {[%clk 00:19:46]} {[%emt 00:00:17]} 8. d4 {[%clk 00:20:16]} {[%emt
00:00:03]} cxd4 {[%clk 00:19:46]} {[%emt 00:00:04]} 9. cxd4 {[%clk 00:20:20]}
Bg7 {[%clk 00:19:43]} {[%emt 00:00:08]} 10. Nc3 {[%clk 00:20:20]} {[%emt
00:00:05]} O-O {[%clk 00:19:43]} {[%emt 00:00:05]} 11. a3 {[%clk 00:20:24]}
{[%emt 00:00:02]} d5 {[%clk 00:18:19]} {[%emt 00:01:28]} 12. e5 {[%clk
00:19:45]} {[%emt 00:00:44]} Bd7 {[%clk 00:17:31]} {[%emt 00:00:53]} 13. Bf4
{[%clk 00:18:55]} {[%emt 00:00:54]} a5 {[%clk 00:13:33]} {[%emt 00:04:04]} 14.
Qd2 {[%clk 00:17:31]} {[%emt 00:01:29]} Rb8 {[%clk 00:11:24]} {[%emt 00:02:14]}
15. Ne2 {[%clk 00:16:31]} {[%emt 00:01:05]} b4 {[%clk 00:10:50]} {[%emt
00:00:39]} 16. Ng3 {[%clk 00:13:24]} {[%emt 00:03:11]} b3 {[%clk 00:09:19]}
{[%emt 00:01:37]} 17. Bb1 {[%clk 00:12:38]} {[%emt 00:00:51]} a4 {[%clk
00:08:42]} {[%emt 00:00:43]} 18. Bh6 {[%clk 00:12:25]} {[%emt 00:00:17]} Na5
{[%clk 00:07:17]} {[%emt 00:01:29]} 19. Bxg7 {[%clk 00:11:25]} {[%emt
00:01:05]} Kxg7 {[%clk 00:07:20]} {[%emt 00:00:01]} 20. Qg5 {[%clk 00:11:28]}
{[%emt 00:00:02]} h6 {[%clk 00:02:39]} {[%emt 00:04:46]} 21. Nh5+ {[%clk
00:09:42]} {[%emt 00:01:52]} Kh7 {[%clk 00:02:43]} 22. Qf6 {[%clk 00:09:44]}
{[%emt 00:00:04]} Rg8 {[%clk 00:02:11]} {[%emt 00:00:36]} 23. Qxf7+ {[%clk
00:09:02]} {[%emt 00:00:47]} Kh8 {[%clk 00:02:15]} 24. Qf6+ {[%clk 00:08:52]}
{[%emt 00:00:15]} Kh7 {[%clk 00:02:17]} {[%emt 00:00:03]} 25. Qh4 {[%clk
00:08:10]} {[%emt 00:00:47]} Nf5 {[%clk 00:01:30]} {[%emt 00:00:52]} 26. Nf6+
{[%clk 00:08:04]} {[%emt 00:00:11]} Kg7 {[%clk 00:01:28]} {[%emt 00:00:07]} 27.
Bxf5 {[%clk 00:08:04]} {[%emt 00:00:05]} exf5 {[%clk 00:01:23]} {[%emt
00:00:10]} 28. Rac1 {[%clk 00:05:36]} {[%emt 00:02:33]} Nc4 {[%clk 00:01:11]}
{[%emt 00:00:17]} 29. Qg3 {[%clk 00:05:06]} {[%emt 00:00:35]} Rf8 {[%clk
00:00:39]} {[%emt 00:00:37]} 30. h4 {[%clk 00:05:07]} {[%emt 00:00:04]} Rb6
{[%clk 00:00:29]} {[%emt 00:00:15]} 31. Nxd5 {[%clk 00:04:38]} {[%emt
00:00:34]} Ra6 {[%clk 00:00:10]} {[%emt 00:00:25]} 32. Rxc4 {[%clk 00:04:24]}
{[%emt 00:00:18]} Bb5 {[%clk 00:00:14]} {[%emt 00:00:02]} 33. Rc7+ {[%clk
00:04:21]} {[%emt 00:00:08]} 1-0

[Event "MČR juniorů a juniorek v rapid šachu 2023"]
[Site "Czech Republic"]
[Date "2023.09.24"]
[Round "9.10"]
[White "Mrkvan, Frantisek"]
[Black "Svacina, Tobias"]
[Result "0-1"]
[TimeControl "20 min + 5 sec per move"]
[WhiteFideId "23721626"]
[BlackFideId "385859"]
[WhiteElo "1601"]
[BlackElo "1782"]

1. e4 {[%clk 00:20:07]} {[%emt 00:00:02]} e5 {[%clk 00:20:05]} {[%emt
00:00:06]} 2. Nf3 {[%clk 00:20:07]} {[%emt 00:00:05]} Nc6 {[%clk 00:20:08]}
{[%emt 00:00:02]} 3. Bc4 {[%clk 00:20:08]} {[%emt 00:00:04]} Nf6 {[%clk
00:20:11]} {[%emt 00:00:02]} 4. Ng5 {[%clk 00:19:44]} {[%emt 00:00:29]} d5
{[%clk 00:20:12]} {[%emt 00:00:03]} 5. exd5 {[%clk 00:19:47]} {[%emt 00:00:02]}
Na5 {[%clk 00:20:15]} {[%emt 00:00:02]} 6. Bb5+ {[%clk 00:19:51]} c6 {[%clk
00:20:19]} {[%emt 00:00:02]} 7. dxc6 {[%clk 00:19:55]} {[%emt 00:00:02]} bxc6
{[%clk 00:20:23]} 8. Bd3 {[%clk 00:19:57]} {[%emt 00:00:03]} Nd5 {[%clk
00:20:22]} {[%emt 00:00:06]} 9. Nf3 {[%clk 00:19:20]} {[%emt 00:00:42]} Bd6
{[%clk 00:20:25]} {[%emt 00:00:02]} 10. O-O {[%clk 00:18:23]} {[%emt 00:01:02]}
O-O {[%clk 00:20:27]} {[%emt 00:00:02]} 11. Nc3 {[%clk 00:18:02]} {[%emt
00:00:26]} f5 {[%clk 00:20:19]} {[%emt 00:00:14]} 12. Be2 {[%clk 00:17:32]}
{[%emt 00:00:35]} e4 {[%clk 00:20:02]} {[%emt 00:00:22]} 13. Nd4 {[%clk
00:17:06]} {[%emt 00:00:31]} Qf6 {[%clk 00:18:16]} {[%emt 00:01:50]} 14. Nb3
{[%clk 00:15:33]} {[%emt 00:01:39]} Qe5 {[%clk 00:13:04]} {[%emt 00:05:17]} 15.
g3 {[%clk 00:13:15]} {[%emt 00:02:23]} Nxb3 {[%clk 00:11:54]} {[%emt 00:01:15]}
16. axb3 {[%clk 00:13:08]} {[%emt 00:00:11]} f4 {[%clk 00:11:13]} {[%emt
00:00:46]} 17. Nxe4 {[%clk 00:09:46]} {[%emt 00:03:28]} Qxe4 {[%clk 00:09:59]}
{[%emt 00:01:19]} 18. Bf3 {[%clk 00:09:50]} Qg6 {[%clk 00:09:22]} {[%emt
00:00:41]} 19. Kh1 {[%clk 00:08:30]} {[%emt 00:01:25]} Bh3 {[%clk 00:07:00]}
{[%emt 00:02:26]} 20. Rg1 {[%clk 00:08:15]} {[%emt 00:00:20]} fxg3 {[%clk
00:06:02]} {[%emt 00:01:03]} 21. fxg3 {[%clk 00:07:48]} {[%emt 00:00:32]} Rxf3
{[%clk 00:04:49]} {[%emt 00:01:19]} 22. Qxf3 {[%clk 00:07:38]} {[%emt
00:00:15]} Rf8 {[%clk 00:04:53]} 23. Qd3 {[%clk 00:07:28]} {[%emt 00:00:15]}
Bf5 {[%clk 00:04:45]} {[%emt 00:00:12]} 24. Qe2 {[%clk 00:07:20]} {[%emt
00:00:13]} Bg4 {[%clk 00:04:39]} {[%emt 00:00:11]} 25. Qe1 {[%clk 00:07:04]}
{[%emt 00:00:21]} Bf3+ {[%clk 00:04:42]} {[%emt 00:00:03]} 26. Rg2 {[%clk
00:07:08]} Nf4 {[%clk 00:04:09]} {[%emt 00:00:38]} 0-1

[Event "MČR juniorů a juniorek v rapid šachu 2023"]
[Site "Czech Republic"]
[Date "2023.09.24"]
[Round "9.11"]
[White "Nagy, Ladislav"]
[Black "Boff, Vojtech"]
[Result "1-0"]
[TimeControl "20 min + 5 sec per move"]
[WhiteFideId "374300"]
[BlackFideId "23733969"]
[WhiteElo "2089"]
[BlackElo "1632"]

1. e4 {[%clk 00:20:07]} {[%emt 00:00:02]} c5 {[%clk 00:20:06]} {[%emt
00:00:04]} 2. Nf3 {[%clk 00:20:10]} {[%emt 00:00:03]} Nc6 {[%clk 00:19:59]}
{[%emt 00:00:12]} 3. Nc3 {[%clk 00:20:12]} {[%emt 00:00:03]} d6 {[%clk
00:20:00]} {[%emt 00:00:04]} 4. Bb5 {[%clk 00:20:00]} {[%emt 00:00:17]} Bd7
{[%clk 00:19:47]} {[%emt 00:00:18]} 5. Bxc6 {[%clk 00:19:45]} {[%emt 00:00:20]}
Bxc6 {[%clk 00:19:49]} {[%emt 00:00:03]} 6. d4 {[%clk 00:19:30]} {[%emt
00:00:20]} cxd4 {[%clk 00:19:14]} {[%emt 00:00:40]} 7. Qxd4 {[%clk 00:19:24]}
{[%emt 00:00:11]} Nf6 {[%clk 00:18:52]} {[%emt 00:00:26]} 8. Bg5 {[%clk
00:19:17]} {[%emt 00:00:13]} e5 {[%clk 00:17:28]} {[%emt 00:01:29]} 9. Qd3
{[%clk 00:18:55]} {[%emt 00:00:28]} Be7 {[%clk 00:17:22]} {[%emt 00:00:10]} 10.
Bxf6 {[%clk 00:18:03]} {[%emt 00:00:58]} Bxf6 {[%clk 00:17:19]} {[%emt
00:00:08]} 11. Rd1 {[%clk 00:17:02]} {[%emt 00:01:05]} Be7 {[%clk 00:16:40]}
{[%emt 00:00:44]} 12. Nd5 {[%clk 00:16:30]} {[%emt 00:00:37]} Bxd5 {[%clk
00:15:42]} {[%emt 00:01:04]} 13. Qxd5 {[%clk 00:16:30]} {[%emt 00:00:04]} Qc7
{[%clk 00:15:22]} {[%emt 00:00:25]} 14. O-O {[%clk 00:15:39]} {[%emt 00:00:56]}
O-O {[%clk 00:14:05]} {[%emt 00:01:21]} 15. c3 {[%clk 00:15:34]} {[%emt
00:00:11]} Qc6 {[%clk 00:13:58]} {[%emt 00:00:12]} 16. Rd3 {[%clk 00:14:29]}
{[%emt 00:01:11]} Qxd5 {[%clk 00:13:56]} {[%emt 00:00:07]} 17. Rxd5 {[%clk
00:14:33]} Rad8 {[%clk 00:13:09]} {[%emt 00:00:52]} 18. Rfd1 {[%clk 00:14:25]}
{[%emt 00:00:13]} a6 {[%clk 00:12:35]} {[%emt 00:00:39]} 19. Nd2 {[%clk
00:14:21]} {[%emt 00:00:09]} b5 {[%clk 00:12:25]} {[%emt 00:00:15]} 20. c4
{[%clk 00:13:53]} {[%emt 00:00:34]} Rb8 {[%clk 00:12:00]} {[%emt 00:00:28]} 21.
b3 {[%clk 00:13:23]} {[%emt 00:00:36]} Rfd8 {[%clk 00:11:15]} {[%emt 00:00:50]}
22. g3 {[%clk 00:12:54]} {[%emt 00:00:34]} Bg5 {[%clk 00:11:10]} {[%emt
00:00:10]} 23. f4 {[%clk 00:12:32]} {[%emt 00:00:28]} Bf6 {[%clk 00:10:57]}
{[%emt 00:00:17]} 24. cxb5 {[%clk 00:12:00]} {[%emt 00:00:38]} Rxb5 {[%clk
00:10:44]} {[%emt 00:00:18]} 25. Nc4 {[%clk 00:11:41]} {[%emt 00:00:23]} Rxd5
{[%clk 00:10:40]} {[%emt 00:00:10]} 26. Rxd5 {[%clk 00:11:45]} {[%emt
00:00:01]} exf4 {[%clk 00:10:41]} {[%emt 00:00:04]} 27. gxf4 {[%clk 00:11:26]}
{[%emt 00:00:24]} Be7 {[%clk 00:10:37]} {[%emt 00:00:09]} 28. Kf2 {[%clk
00:11:08]} {[%emt 00:00:22]} Kf8 {[%clk 00:09:36]} {[%emt 00:01:06]} 29. Ke3
{[%clk 00:11:09]} {[%emt 00:00:05]} Ke8 {[%clk 00:09:25]} {[%emt 00:00:15]} 30.
Ra5 {[%clk 00:09:38]} {[%emt 00:01:36]} Ra8 {[%clk 00:09:03]} {[%emt 00:00:27]}
31. Kd4 {[%clk 00:09:24]} {[%emt 00:00:19]} Kd7 {[%clk 00:07:18]} {[%emt
00:01:50]} 32. Nb6+ {[%clk 00:09:23]} {[%emt 00:00:07]} 1-0

[Event "MČR juniorů a juniorek v rapid šachu 2023"]
[Site "Czech Republic"]
[Date "2023.09.24"]
[Round "9.12"]
[White "Stejskal, Michal"]
[Black "Zadrapa, Jakub"]
[Result "1/2-1/2"]
[TimeControl "20 min + 5 sec per move"]
[WhiteFideId "398195"]
[BlackFideId "23714778"]
[WhiteElo "1959"]
[BlackElo "1696"]

1. e4 {[%clk 00:20:08]} {[%emt 00:00:01]} e5 {[%clk 00:20:09]} 2. Nf3 {[%clk
00:20:11]} {[%emt 00:00:02]} Nc6 {[%clk 00:20:13]} 3. c3 {[%clk 00:20:15]} Nf6
{[%clk 00:20:16]} {[%emt 00:00:02]} 4. d4 {[%clk 00:20:19]} Nxe4 {[%clk
00:20:09]} {[%emt 00:00:13]} 5. d5 {[%clk 00:20:22]} {[%emt 00:00:01]} Ne7
{[%clk 00:20:11]} {[%emt 00:00:04]} 6. Nxe5 {[%clk 00:20:25]} {[%emt 00:00:02]}
Ng6 {[%clk 00:19:58]} {[%emt 00:00:18]} 7. Bd3 {[%clk 00:20:27]} {[%emt
00:00:02]} Nc5 {[%clk 00:19:22]} {[%emt 00:00:42]} 8. Bxg6 {[%clk 00:20:10]}
{[%emt 00:00:22]} hxg6 {[%clk 00:19:12]} {[%emt 00:00:15]} 9. O-O {[%clk
00:18:11]} {[%emt 00:02:04]} d6 {[%clk 00:19:04]} {[%emt 00:00:13]} 10. Nf3
{[%clk 00:17:52]} {[%emt 00:00:24]} Bg4 {[%clk 00:18:59]} {[%emt 00:00:10]} 11.
Re1+ {[%clk 00:17:54]} {[%emt 00:00:02]} Be7 {[%clk 00:19:03]} {[%emt
00:00:02]} 12. b4 {[%clk 00:17:42]} {[%emt 00:00:17]} Nd7 {[%clk 00:18:41]}
{[%emt 00:00:27]} 13. Bg5 {[%clk 00:17:22]} {[%emt 00:00:24]} f6 {[%clk
00:18:38]} {[%emt 00:00:09]} 14. Bf4 {[%clk 00:17:23]} {[%emt 00:00:04]} Ne5
{[%clk 00:18:13]} {[%emt 00:00:30]} 15. Bxe5 {[%clk 00:16:51]} {[%emt
00:00:37]} fxe5 {[%clk 00:18:16]} {[%emt 00:00:02]} 16. Qd3 {[%clk 00:16:55]}
Bf5 {[%clk 00:18:16]} {[%emt 00:00:06]} 17. Qe3 {[%clk 00:16:56]} {[%emt
00:00:03]} Bf6 {[%clk 00:17:38]} {[%emt 00:00:43]} 18. Nbd2 {[%clk 00:16:54]}
{[%emt 00:00:07]} Qe7 {[%clk 00:17:26]} {[%emt 00:00:17]} 19. a4 {[%clk
00:16:52]} {[%emt 00:00:07]} g5 {[%clk 00:16:21]} {[%emt 00:01:10]} 20. Ne4
{[%clk 00:16:13]} {[%emt 00:00:44]} g4 {[%clk 00:16:22]} {[%emt 00:00:04]} 21.
Nfd2 {[%clk 00:16:15]} {[%emt 00:00:02]} a6 {[%clk 00:10:56]} {[%emt 00:05:31]}
22. c4 {[%clk 00:16:02]} {[%emt 00:00:18]} Kf7 {[%clk 00:10:19]} {[%emt
00:00:43]} 23. b5 {[%clk 00:14:19]} {[%emt 00:01:49]} b6 {[%clk 00:08:32]}
{[%emt 00:01:52]} 24. a5 {[%clk 00:12:00]} {[%emt 00:02:23]} bxa5 {[%clk
00:08:12]} {[%emt 00:00:25]} 25. b6 {[%clk 00:11:31]} {[%emt 00:00:34]} cxb6
{[%clk 00:07:38]} {[%emt 00:00:40]} 26. Qxb6 {[%clk 00:11:33]} {[%emt
00:00:03]} Rhd8 {[%clk 00:07:36]} {[%emt 00:00:07]} 27. Rxa5 {[%clk 00:11:14]}
{[%emt 00:00:23]} Bg5 {[%clk 00:07:20]} {[%emt 00:00:21]} 28. Rxa6 {[%clk
00:09:34]} {[%emt 00:01:45]} Bxd2 {[%clk 00:06:26]} {[%emt 00:00:59]} 29. Nxd2
{[%clk 00:09:38]} {[%emt 00:00:02]} Rab8 {[%clk 00:05:57]} {[%emt 00:00:34]} 30.
Qa5 {[%clk 00:09:26]} {[%emt 00:00:16]} Rd7 {[%clk 00:05:18]} {[%emt 00:00:44]}
31. Qa3 {[%clk 00:07:03]} {[%emt 00:02:27]} Qg5 {[%clk 00:03:59]} {[%emt
00:01:24]} 32. Nf1 {[%clk 00:07:01]} {[%emt 00:00:08]} Qd8 {[%clk 00:03:13]}
{[%emt 00:00:50]} 33. Ne3 {[%clk 00:06:57]} {[%emt 00:00:09]} g6 {[%clk
00:03:09]} {[%emt 00:00:10]} 34. Nxf5 {[%clk 00:05:55]} {[%emt 00:01:08]} gxf5
{[%clk 00:03:12]} 35. Qd3 {[%clk 00:05:58]} {[%emt 00:00:01]} Qg5 {[%clk
00:02:53]} {[%emt 00:00:25]} 36. Qa3 {[%clk 00:05:45]} {[%emt 00:00:19]} Qd2
{[%clk 00:02:31]} {[%emt 00:00:26]} 37. Ra1 {[%clk 00:05:11]} {[%emt 00:00:39]}
Qc2 {[%clk 00:02:06]} {[%emt 00:00:31]} 38. Qc1 {[%clk 00:04:29]} {[%emt
00:00:46]} Rb2 {[%clk 00:01:42]} {[%emt 00:00:29]} 39. Qf1 {[%clk 00:04:32]}
{[%emt 00:00:02]} Ke7 {[%clk 00:01:23]} {[%emt 00:00:25]} 40. Rc1 {[%clk
00:03:52]} {[%emt 00:00:44]} Qb3 {[%clk 00:01:25]} {[%emt 00:00:03]} 41. c5
{[%clk 00:03:42]} {[%emt 00:00:16]} Qxd5 {[%clk 00:01:15]} {[%emt 00:00:14]} 42.
cxd6+ {[%clk 00:03:23]} {[%emt 00:00:25]} Rxd6 {[%clk 00:01:05]} {[%emt
00:00:14]} 43. Rxd6 {[%clk 00:03:11]} {[%emt 00:00:17]} Qxd6 {[%clk 00:01:09]}
44. Qc4 {[%clk 00:03:03]} {[%emt 00:00:13]} Rd2 {[%clk 00:01:00]} {[%emt
00:00:13]} 45. Rf1 {[%clk 00:02:57]} {[%emt 00:00:11]} Rd5 {[%clk 00:00:45]}
{[%emt 00:00:21]} 46. Qc8 {[%clk 00:02:52]} {[%emt 00:00:11]} Rd1 {[%clk
00:00:25]} {[%emt 00:00:24]} 47. Qb7+ {[%clk 00:02:48]} {[%emt 00:00:10]} Kf6
{[%clk 00:00:27]} {[%emt 00:00:03]} 48. g3 {[%clk 00:02:31]} {[%emt 00:00:21]}
Rxf1+ {[%clk 00:00:21]} {[%emt 00:00:10]} 49. Kxf1 {[%clk 00:02:35]} {[%emt
00:00:02]} Qd1+ {[%clk 00:00:25]} 50. Kg2 {[%clk 00:02:39]} {[%emt 00:00:02]}
e4 {[%clk 00:00:23]} {[%emt 00:00:07]} 51. Qc6+ {[%clk 00:02:41]} {[%emt
00:00:03]} Kg5 {[%clk 00:00:25]} {[%emt 00:00:03]} 52. Qc3 {[%clk 00:02:31]}
{[%emt 00:00:15]} Qf3+ {[%clk 00:00:17]} {[%emt 00:00:13]} 53. Qxf3 {[%clk
00:02:35]} {[%emt 00:00:02]} exf3+ {[%clk 00:00:20]} 54. Kf1 {[%clk 00:02:39]}
Kf6 {[%clk 00:00:24]} {[%emt 00:00:02]} 55. Ke1 {[%clk 00:02:43]} Ke5 {[%clk
00:00:26]} {[%emt 00:00:03]} 56. Kd1 {[%clk 00:02:47]} Kd5 {[%clk 00:00:30]} 57.
Ke1 {[%clk 00:02:48]} {[%emt 00:00:04]} Ke4 {[%clk 00:00:28]} {[%emt 00:00:08]}
58. Kd2 {[%clk 00:02:50]} {[%emt 00:00:03]} Kd4 {[%clk 00:00:32]} {[%emt
00:00:02]} 59. Kc2 {[%clk 00:02:54]} Ke5 {[%emt 00:00:28]} 1/2-1/2